[Event "FRA-ch Youth U20 2018"]
[Site "Agen"]
[Date "2018.04.20"]
[Round "7"]
[White "Aubert, Laurane"]
[Black "Terrazzoni, Claire"]
[Result "1-0"]
[ECO "B50"]
[WhiteElo "1952"]
[BlackElo "1819"]
[Annotator "NA"]
[PlyCount "77"]
[EventDate "2018.??.??"]
[EventType "swiss"]
[EventCountry "FRA"]
[SourceTitle "playchess.com"]
[Source "ChessBase"]
[SourceQuality "1"]
[TimeControl "5400+30"]

1. e4 {[%emt 0:00:00]} c5 {[%emt 0:00:09]} 2. Nf3 {[%emt 0:00:00]} d6 {[%emt 0:00:38]} 3. c3 {[%emt 0:00:00]} Nf6 {[%emt 0:03:05]} 4. h3 {[%emt 0:00:00]} Bd7 5. Bd3 {[%emt 0:01:22] B50: Sicilian: 2...d6, Miscellaneous} g6 {[%emt 0:04:47]} (5... Bc6 6. Qe2 g6 7. O-O Bg7 8. Bc2 e5 9. d4 Qc7 10. d5 Bd7 11. c4 O-O 12. Nc3 Nh5 {1-0 (36) Vera Siguenas,D (2513)-Barrientos,S (2480) Lima 2018}) 6. O-O {[%emt 0:01:54]} Bg7 {[%emt 0:01:02]} 7. Bc2 {[%emt 0:00:27]} O-O {[%emt 0:03:50]} 8. d4 {[%emt 0:01:33]} Bc6 $146 {[%emt 0:06:22]} ({Predecessor:} 8... cxd4 9. cxd4 Nc6 10. Nc3 Qb6 11. e5 Ne8 12. Nd5 Qd8 13. Qe2 dxe5 14. dxe5 Bxh3 15. Rd1 Bd7 16. Be3 Nc7 17. Bb6 axb6 18. Nxb6 Nb8 19. Qd2 e6 20. Nxd7 Nxd7 21. Qxd7 Nd5 22. Qxb7 Qa5 23. Rab1 Rfb8 {½-½ (23) Stefanov,P (2409)-Tenev,T (2330) ICCF email 2008}) 9. Re1 {[%emt 0:02:00]} Na6 {[%emt 0:05:02]} 10. Nbd2 {[%emt 0:09:18]} cxd4 {[%emt 0:07:48]} 11. cxd4 {[%emt 0:00:25]} d5 {[%emt 0:02:24]} 12. e5 {[%emt 0:00:33]} Nd7 {[%emt 0:02:09]} 13. Nf1 {[%emt 0:01:43]} Nb6 {[%emt 0:03:23]} 14. Ne3 {[%emt 0:03:46]} Rc8 {[%emt 0:03:25]} 15. Ng4 {[%emt 0:08:04]} Nb4 {[%emt 0:08:24]} 16. Bb1 {[%emt 0:06:04]} Bd7 {[%emt 0:06:12] [#]} 17. Nh6+ $1 {[%emt 0:04:53]} Kh8 {[%emt 0:01:48]} 18. a3 {[%emt 0:00:43]} Nc6 {[%emt 0:01:10]} 19. Nh4 $11 {[%emt 0:08:14]} (19. b3 $14) 19... Nxd4 {[%emt 0:08:47]} 20. Nxf7+ {[%emt 0:21:45]} Rxf7 {[%emt 0:00:32]} 21. Nxg6+ {[%emt 0:00:54]} Kg8 {[%emt 0:04:26]} 22. Qxd4 {[%emt 0:06:47]} Rc4 {[%emt 0:07:00]} 23. Qd1 {[%emt 0:01:15]} Bf5 {[%emt 0:03:43]} 24. e6 {[%emt 0:05:12]} Rf6 {[%emt 0:03:18]} 25. Ne5 {[%emt 0:01:27]} Rc8 {[%emt 0:02:26]} 26. Bg5 {[%emt 0:06:09]} Bxb1 {[%emt 0:03:24]} 27. Bxf6 {[%emt 0:04:26]} exf6 {[%emt 0:04:33]} 28. Nf7 {[%emt 0:01:20]} Bc2 {[%emt 0:01:04]} 29. Qxc2 {[%emt 0:02:04]} Qe7 {[%emt 0:01:46]} 30. Qf5 {[%emt 0:01:20]} Rc6 {[%emt 0:00:59]} 31. Rac1 {[%emt 0:00:37]} a6 {[%emt 0:01:50]} 32. a4 {[%emt 0:00:53]} a5 {[%emt 0:00:28]} 33. b3 {[%emt 0:00:18]} Qe8 {[%emt 0:00:29]} 34. Qg4 {[%emt 0:00:40]} Qe7 {[%emt 0:00:30]} 35. Nh6+ {[%emt 0:00:32]} Kf8 {[%emt 0:00:31]} 36. Nf5 {[%emt 0:00:32]} Qc7 {[%emt 0:00:30]} 37. Rxc6 {[%emt 0:00:28]} bxc6 {[%emt 0:00:08]} 38. e7+ {[%emt 0:00:12]} Ke8 {[%emt 0:00:16]} 39. Nxg7+ {[%emt 0:00:17]} 1-0

[Event "FRA-ch Youth U20 2018"]
[Site "Agen"]
[Date "2018.04.20"]
[Round "7"]
[White "Bartels, Karina"]
[Black "Haussernot, Cecile"]
[Result "0-1"]
[ECO "B51"]
[WhiteElo "1702"]
[BlackElo "2165"]
[Annotator "NA"]
[PlyCount "102"]
[EventDate "2018.??.??"]
[EventType "swiss"]
[EventCountry "FRA"]
[SourceTitle "playchess.com"]
[Source "ChessBase"]
[SourceQuality "1"]
[TimeControl "5400+30"]

1. e4 {[%emt 0:00:00]} c5 {[%emt 0:00:04]} 2. Nf3 {[%emt 0:00:00]} d6 {[%emt 0:00:04]} 3. Bb5+ {[%emt 0:00:00]} Nd7 {[%emt 0:00:07]} 4. d4 {[%emt 0:00:05]} cxd4 {[%emt 0:00:34]} 5. Qxd4 {[%emt 0:00:11]} a6 {[%emt 0:00:48]} 6. Bxd7+ {[%emt 0:00:21]} Bxd7 {[%emt 0:00:10]} 7. Bg5 {[%emt 0:00:36] B51: Sicilian: Moscow Variation (3 Bb5+) without 3...Bd7} (7. c4 e5 8. Qd3 b5 9. Nc3 bxc4 10. Qxc4 Be6 11. Qc6+ Bd7 12. Qc4 Be6 13. Qc6+ Bd7 {½-½ (13) Jones,G (2651)-Wojtaszek,R (2738) Batumi 2018}) 7... Rc8 {[%emt 0:05:04]} 8. Nc3 {[%emt 0:03:47]} Bg4 {[%emt 0:01:48]} 9. Nd2 $146 {[%emt 0:11:16]} ({Predecessor:} 9. O-O-O Qa5 10. Bh4 Bxf3 11. gxf3 Qc5 12. Kb1 b5 13. a4 b4 14. Qxc5 Rxc5 {1-0 (52) Pourramezanali,A (2538)-Sedaghati,M (2279) Bandar e Anzali 2018}) 9... Nf6 {[%emt 0:07:04]} 10. Bxf6 {[%emt 0:01:38]} gxf6 {[%emt 0:00:14]} 11. Nc4 {[%emt 0:13:48]} Bg7 {[%emt 0:04:51]} 12. f4 {[%emt 0:04:43]} b5 {[%emt 0:08:23]} 13. Ne3 {[%emt 0:04:11]} Bd7 {[%emt 0:13:47]} 14. O-O {[%emt 0:08:40]} Qc7 {[%emt 0:02:33]} 15. Rad1 {[%emt 0:11:46]} a5 {[%emt 0:05:03]} 16. Kh1 {[%emt 0:05:33]} Qc5 {[%emt 0:04:13]} 17. f5 {[%emt 0:06:15]} h5 {[%emt 0:00:55]} 18. Ncd5 {[%emt 0:02:21]} Rc6 {[%emt 0:04:41]} 19. c3 {[%emt 0:01:38]} Qxd4 {[%emt 0:01:09]} 20. Rxd4 {[%emt 0:05:33]} Bc8 {[%emt 0:03:24]} 21. Rdd1 {[%emt 0:02:05]} Ba6 {[%emt 0:02:43]} 22. Rf2 {[%emt 0:00:44]} Bh6 {[%emt 0:00:32]} 23. Nc2 {[%emt 0:00:51]} Rg8 {[%emt 0:02:08]} 24. Nd4 {[%emt 0:03:12]} Rc8 {[%emt 0:02:47]} 25. h3 {[%emt 0:02:41]} Rg3 {[%emt 0:10:11]} 26. Ne2 {[%emt 0:01:51]} Rg8 {[%emt 0:00:46]} 27. Nd4 {[%emt 0:00:05]} Rc4 {[%emt 0:00:33]} 28. Re1 {[%emt 0:01:04]} Rg3 {[%emt 0:00:30]} 29. Rf3 {[%emt 0:01:44]} Rg8 {[%emt 0:02:53]} 30. Rf2 {[%emt 0:00:17]} Kd8 $14 {[%emt 0:03:03]} 31. Rf3 {[%emt 0:01:47]} b4 {[%emt 0:06:20]} 32. Rd1 {[%emt 0:01:18]} Bb7 {[%emt 0:01:41]} 33. b3 {[%emt 0:02:38]} Bxd5 {[%emt 0:01:56]} 34. bxc4 {[%emt 0:01:07]} Bxe4 {[%emt 0:00:02]} 35. Rf2 {[%emt 0:00:26]} bxc3 {[%emt 0:00:02]} 36. Nc2 {[%emt 0:00:30]} Rg3 {[%emt 0:00:19]} 37. Kh2 {[%emt 0:00:50]} h4 {[%emt 0:00:02]} 38. Rd4 {[%emt 0:00:56]} Be3 {[%emt 0:02:45]} 39. Nxe3 {[%emt 0:00:46]} Rxe3 {[%emt 0:00:02]} 40. Rd1 {[%emt 0:01:05]} Kc7 {[%emt 0:00:37]} 41. Rc1 {[%emt 0:00:42]} Kc6 {[%emt 0:00:14]} 42. Kg1 {[%emt 0:00:40]} Kc5 {[%emt 0:00:12]} 43. Rf4 {[%emt 0:00:24]} Re2 {[%emt 0:00:56]} 44. Rf2 {[%emt 0:00:35]} Rxf2 {[%emt 0:00:44]} 45. Kxf2 {[%emt 0:00:01]} Kxc4 {[%emt 0:00:06]} 46. g4 {[%emt 0:01:30]} hxg3+ {[%emt 0:00:13]} 47. Kxg3 {[%emt 0:00:09]} Bxf5 {[%emt 0:00:06]} 48. h4 {[%emt 0:00:26]} c2 {[%emt 0:01:25]} 49. Kf4 {[%emt 0:00:15]} Bh7 {[%emt 0:00:10]} 50. Ke3 {[%emt 0:00:23]} Kc3 {[%emt 0:00:05]} 51. h5 {[%emt 0:00:18]} d5 {[%emt 0:00:04]} 0-1

[Event "FRA-ch Youth U20 2018"]
[Site "Agen"]
[Date "2018.04.20"]
[Round "7"]
[White "Aouachria, Marwa"]
[Black "Leriche, Ines"]
[Result "1/2-1/2"]
[ECO "B38"]
[WhiteElo "1687"]
[BlackElo "1913"]
[Annotator "NA"]
[PlyCount "124"]
[EventDate "2018.??.??"]
[EventType "swiss"]
[EventCountry "FRA"]
[SourceTitle "playchess.com"]
[Source "ChessBase"]
[SourceQuality "1"]
[TimeControl "5400+30"]

1. e4 {[%emt 0:00:00]} c5 {[%emt 0:00:43]} 2. Nf3 {[%emt 0:00:00]} Nc6 {[%emt 0:00:41]} 3. d4 {[%emt 0:00:00]} cxd4 {[%emt 0:00:11]} 4. Nxd4 {[%emt 0:00:00]} g6 {[%emt 0:00:21]} 5. c4 {[%emt 0:01:02]} Bg7 {[%emt 0:00:35]} 6. Be3 {[%emt 0:00:02]} Nf6 {[%emt 0:00:55]} 7. Nc3 {[%emt 0:00:04]} O-O {[%emt 0:01:01]} 8. Be2 {[%emt 0:00:16]} d6 {[%emt 0:00:28]} 9. O-O {[%emt 0:00:22]} Nxd4 {[%emt 0:00:32]} 10. Bxd4 {[%emt 0:00:08]} Bd7 {[%emt 0:00:15]} 11. f4 {[%emt 0:03:01]} Bc6 {[%emt 0:03:33]} 12. Bf3 {[%emt 0:06:29]} Nd7 {[%emt 0:05:55]} 13. Bxg7 {[%emt 0:05:31] B38: Sicilian: Maroczy Bind with 5...Bg7 and 7...0-0} Kxg7 {[%emt 0:00:16]} 14. Qd4+ {[%emt 0:02:01]} (14. Qd2 a5 15. Rad1 Qb6+ 16. Kh1 Rfd8 17. Nd5 Bxd5 18. exd5 Rac8 19. b3 a4 20. Qc3+ Kg8 {1-0 (31) Shirov,A (2714)-Leon Hoyos,M (2548) Khanty-Mansiysk 2011}) 14... Kg8 {[%emt 0:04:52]} 15. Rad1 {[%emt 0:12:54]} Qb6 {[%emt 0:11:47]} 16. Kh1 {[%emt 0:11:51]} Rfd8 {[%emt 0:10:51]} 17. Rf2 $146 {[%emt 0:09:49]} ({Predecessor:} 17. Qf2 Qb4 18. Rd4 e5 19. a3 Qc5 20. fxe5 Qxe5 21. Bg4 Qe7 22. Bxd7 Rxd7 {1-0 (71) Schmidt,I-Woller,R (2210) Ruhrgebiet 1997}) 17... a5 {[%emt 0:06:23]} 18. Rfd2 {[%emt 0:01:47]} Qxd4 {[%emt 0:15:15]} 19. Rxd4 {[%emt 0:00:02]} Nc5 {[%emt 0:00:22]} 20. Nd5 {[%emt 0:10:38]} Bxd5 {[%emt 0:03:33]} 21. Rxd5 {[%emt 0:00:35]} Rdc8 {[%emt 0:07:55]} 22. e5 {[%emt 0:07:39]} dxe5 {[%emt 0:02:00]} 23. Rxe5 {[%emt 0:00:24]} Rc7 {[%emt 0:00:59]} 24. f5 {[%emt 0:05:15]} Kf8 {[%emt 0:05:30]} 25. h4 {[%emt 0:03:43]} gxf5 {[%emt 0:06:51]} 26. Rxf5 {[%emt 0:00:28]} f6 {[%emt 0:00:58]} 27. g4 {[%emt 0:03:09]} Nd7 {[%emt 0:05:12]} 28. g5 {[%emt 0:03:56]} Ra6 {[%emt 0:05:06]} 29. h5 {[%emt 0:08:45]} e6 {[%emt 0:01:10]} 30. Rb5 {[%emt 0:00:06]} b6 {[%emt 0:00:30]} 31. gxf6 {[%emt 0:01:37]} Kf7 {[%emt 0:00:47]} 32. Rd4 {[%emt 0:02:21]} Nxf6 {[%emt 0:00:29]} 33. b3 {[%emt 0:00:45]} Rc5 {[%emt 0:00:28]} 34. Rd6 {[%emt 0:00:52]} Rf5 {[%emt 0:00:33]} 35. Kg2 {[%emt 0:00:48]} Ke7 {[%emt 0:00:27]} 36. Rdxb6 {[%emt 0:00:19]} Rxb6 {[%emt 0:00:17]} 37. Rxb6 {[%emt 0:00:02]} Nxh5 {[%emt 0:00:46]} 38. Rb5 {[%emt 0:00:26]} Nf6 {[%emt 0:00:32]} 39. c5 {[%emt 0:00:42]} a4 {[%emt 0:00:30]} 40. b4 {[%emt 0:00:19]} Nd7 {[%emt 0:00:27]} 41. Rb7 {[%emt 0:00:12]} Kd8 {[%emt 0:00:28]} 42. c6 {[%emt 0:00:19]} Ne5 {[%emt 0:00:31]} 43. Be4 {[%emt 0:02:06]} Rf4 {[%emt 0:00:22]} 44. Bxh7 {[%emt 0:00:14]} Nxc6 {[%emt 0:00:26]} 45. b5 {[%emt 0:00:17]} Na5 {[%emt 0:00:45]} 46. Ra7 {[%emt 0:00:46]} Nc4 {[%emt 0:00:30]} 47. Kg3 {[%emt 0:00:07]} Rf1 {[%emt 0:00:31]} 48. Rxa4 {[%emt 0:00:10]} Nd6 {[%emt 0:00:27]} 49. Rb4 {[%emt 0:00:50]} Kc7 {[%emt 0:00:26]} 50. Bd3 {[%emt 0:00:42]} Ra1 {[%emt 0:00:27]} 51. Ra4 {[%emt 0:00:41]} Rd1 {[%emt 0:00:32]} 52. Be2 {[%emt 0:00:29]} Rb1 {[%emt 0:00:23]} 53. Ra7+ {[%emt 0:00:22]} Kb8 {[%emt 0:00:36]} 54. Ra6 {[%emt 0:00:33]} Ne4+ {[%emt 0:00:36]} 55. Kf3 $11 {[%emt 0:00:58]} Nc3 {[%emt 0:00:00]} 56. Rxe6 {[%emt 0:00:33]} Nxe2 {[%emt 0:00:43]} 57. Kxe2 {[%emt 0:00:22]} Rxb5 {[%emt 0:00:22]} 58. Kd3 {[%emt 0:00:33]} Rc5 {[%emt 0:00:44]} 59. a4 {[%emt 0:00:20]} Kb7 {[%emt 0:00:32]} 60. Rg6 {[%emt 0:00:34]} Rc6 {[%emt 0:00:31]} 61. Rg5 {[%emt 0:00:13]} Ka6 {[%emt 0:00:32]} 62. Kd4 {[%emt 0:00:22]} Rc1 {[%emt 0:00:20]} 1/2-1/2

[Event "FRA-ch Youth U20 2018"]
[Site "Agen"]
[Date "2018.04.20"]
[Round "7"]
[White "Wojnowski, Natalia"]
[Black "Retailleau, Elise"]
[Result "0-1"]
[ECO "B23"]
[WhiteElo "1426"]
[BlackElo "1932"]
[Annotator "NA"]
[PlyCount "66"]
[EventDate "2018.??.??"]
[EventType "swiss"]
[EventCountry "FRA"]
[SourceTitle "playchess.com"]
[Source "ChessBase"]
[SourceQuality "1"]
[TimeControl "5400+30"]

1. e4 {[%emt 0:00:00]} c5 {[%emt 0:00:13]} 2. Nc3 {[%emt 0:00:00]} Nc6 {[%emt 0:00:26]} 3. f4 {[%emt 0:00:00]} g6 {[%emt 0:00:12]} 4. Bc4 {[%emt 0:00:10]} Bg7 {[%emt 0:00:31]} 5. Nf3 {[%emt 0:00:41]} e6 {[%emt 0:00:37]} 6. f5 {[%emt 0:07:07]} Nge7 {[%emt 0:02:09]} 7. fxe6 {[%emt 0:01:02]} dxe6 {[%emt 0:00:22]} 8. O-O {[%emt 0:00:12]} O-O {[%emt 0:00:26] B23: Closed Sicilian: Lines without g3} 9. Qe1 {[%emt 0:01:23]} (9. d3 Nd4 10. Bg5 h6 11. Bh4 g5 12. Bg3 Ng6 13. Nxd4 cxd4 14. Nb5 Be5 15. c3 Bxg3 16. hxg3 dxc3 17. bxc3 Bd7 18. Nd4 {0-1 (28) Al Modiahki,M (2542)-Kuzubov,Y (2699) Riadh 2017}) 9... Nd4 {[%emt 0:06:08]} 10. d3 {[%emt 0:11:44]} Nxc2 {[%emt 0:04:54]} 11. Qh4 {[%emt 0:00:11]} Nxa1 {[%emt 0:02:32]} 12. Bh6 {[%emt 0:00:08]} Nc2 $146 {[%emt 0:08:59]} ({Predecessor:} 12... Nc6 13. Ng5 Bf6 14. Rxf6 Qxf6 15. Bxf8 h5 16. g4 Qf4 {0-1 (16) Sanger,J (1097)-Noble,R (1542) Dundee 2014}) 13. Ng5 {[%emt 0:03:26]} Bxh6 {[%emt 0:03:20]} 14. Qxh6 {[%emt 0:00:07]} Qd4+ {[%emt 0:00:08]} 15. Rf2 {[%emt 0:01:23]} Qg7 {[%emt 0:00:16]} 16. Qxg7+ {[%emt 0:01:15]} Kxg7 {[%emt 0:00:06]} 17. Rxc2 {[%emt 0:00:07]} a6 {[%emt 0:06:14]} 18. Rf2 {[%emt 0:00:42]} Nc6 {[%emt 0:02:09]} 19. Ne2 {[%emt 0:03:23]} h6 {[%emt 0:06:06]} 20. Nf3 {[%emt 0:02:17]} b5 {[%emt 0:02:09]} 21. Bb3 {[%emt 0:02:32]} Rd8 {[%emt 0:01:35]} 22. Nc1 {[%emt 0:04:10]} Nb4 {[%emt 0:04:47]} 23. Ne5 {[%emt 0:00:33]} f6 {[%emt 0:03:53]} 24. Ng4 {[%emt 0:00:50]} f5 {[%emt 0:09:45]} 25. Ne5 $19 {[%emt 0:01:09]} Rd6 {[%emt 0:01:09]} 26. g4 {[%emt 0:03:11]} Ra7 {[%emt 0:04:17]} 27. gxf5 {[%emt 0:01:04]} exf5 {[%emt 0:00:15]} 28. Rg2 {[%emt 0:02:28]} Re7 {[%emt 0:03:26]} 29. a3 {[%emt 0:03:50]} Rxe5 {[%emt 0:04:03]} 30. axb4 {[%emt 0:00:12]} fxe4 {[%emt 0:00:45]} 31. Rf2 {[%emt 0:03:09]} c4 {[%emt 0:04:41]} 32. dxc4 {[%emt 0:01:33]} e3 {[%emt 0:00:18]} 33. Rf1 {[%emt 0:06:34]} Rg5+ {[%emt 0:00:25]} 0-1

[Event "FRA-ch Youth U20 2018"]
[Site "Agen"]
[Date "2018.04.21"]
[Round "8"]
[White "Philippe, Guillaume"]
[Black "Ek, Alexandre"]
[Result "1-0"]
[ECO "B20"]
[WhiteElo "2372"]
[BlackElo "2222"]
[Annotator "NA RC"]
[PlyCount "69"]
[EventDate "2018.??.??"]
[EventType "swiss"]
[EventCountry "FRA"]
[SourceTitle "playchess.com"]
[Source "ChessBase"]
[SourceQuality "1"]
[TimeControl "5400+30"]

1. e4 {[%emt 0:00:00]} c5 {[%emt 0:00:07]} 2. a3 {[%emt 0:00:08]} Nc6 {[%emt 0:02:20]} 3. b4 {[%emt 0:01:41]} cxb4 {[%emt 0:04:13]} 4. axb4 {[%emt 0:01:04]} Nxb4 {[%emt 0:03:45]} 5. c3 {[%emt 0:00:45]} Nc6 {[%emt 0:00:21]} 6. d4 {[%emt 0:00:06]} d5 {[%emt 0:00:12]} 7. exd5 {[%emt 0:00:12] B20: Sicilian: Unusual White 2nd moves} Qxd5 {[%emt 0:00:07]} 8. Na3 {[%emt 0:00:16]} Bf5 {[%emt 0:25:01] LiveBook: 3 Games} (8... Qa5 $11) 9. Nb5 {[%emt 0:06:57]} Rc8 {[%emt 0:00:30]} 10. Bf4 {[%emt 0:00:37]} ({White should try} 10. Nxa7 $14 Nxa7 11. Rxa7 e5 12. Nf3 exd4 13. Nxd4 Bd7 14. Nb5 Qxd1+ 15. Kxd1 {1-0 (27) Carlsen,M (2837)-Inarkiev,E (2689) Riadh 2017}) 10... e5 {[%emt 0:04:14]} 11. dxe5 {[%emt 0:07:13]} Qe4+ {[%emt 0:00:13]} 12. Be3 $146 {[%emt 0:01:54]} ({Predecessor:} 12. Ne2 $11 {keeps the balance.} Nxe5 13. Bxe5 Qxe5 14. Nbd4 Bc5 15. Nxf5 Qxf5 {½-½ (56) Karlicek,P (2147)-Vichnar,D (2223) Czechia 2011}) 12... a6 {[%emt 0:22:58]} 13. Nd6+ {[%emt 0:06:09]} Bxd6 $1 {[%emt 0:00:04]} 14. exd6 {[%emt 0:00:06]} Rd8 {[%emt 0:05:32]} 15. Nf3 {[%emt 0:04:53]} Qe6 {[%emt 0:01:51]} 16. Nd4 {[%emt 0:01:59]} Nxd4 {[%emt 0:00:58]} 17. Qxd4 {[%emt 0:00:13]} Nf6 {[%emt 0:01:15]} 18. Rd1 {[%emt 0:00:31]} O-O $1 {[%emt 0:01:14]} 19. Bc4 {[%emt 0:04:46]} Qe4 {[%emt 0:01:26]} 20. f3 {[%emt 0:01:08]} Qxd4 {[%emt 0:00:37]} 21. Rxd4 {[%emt 0:00:06]} b5 {[%emt 0:05:03]} 22. Bd3 {[%emt 0:05:34]} Be6 {[%emt 0:01:42]} 23. Bg5 {[%emt 0:02:30]} Rd7 {[%emt 0:00:48]} 24. Kf2 {[%emt 0:09:52]} Rc8 {[%emt 0:03:05]} 25. Ra1 {[%emt 0:00:43]} Nd5 {[%emt 0:04:59]} 26. Rxa6 {[%emt 0:01:00]} Nxc3 {[%emt 0:04:40]} 27. Bd2 {[%emt 0:00:19]} b4 {[%emt 0:01:45]} 28. Rxb4 {[%emt 0:00:35]} Nd5 {[%emt 0:00:02]} 29. Rd4 {[%emt 0:00:54]} f6 {[%emt 0:04:51]} 30. Bb5 {[%emt 0:00:48]} Rcd8 {[%emt 0:00:30]} 31. Ba5 {[%emt 0:01:39]} Kf7 {[%emt 0:00:53]} 32. Bxd8 {[%emt 0:01:30]} Rxd8 $18 {[%emt 0:00:02]} 33. Bc4 {[%emt 0:00:15]} Ne7 {[%emt 0:01:09]} 34. dxe7 {[%emt 0:00:22]} Rxd4 {[%emt 0:00:08]} 35. Rxe6 {[%emt 0:00:05]} 1-0

[Event "FRA-ch Youth U20 2018"]
[Site "Agen"]
[Date "2018.04.21"]
[Round "8"]
[White "Albaric, Etienne"]
[Black "Pigeat, Alexandre"]
[Result "1-0"]
[ECO "C05"]
[WhiteElo "2202"]
[BlackElo "2275"]
[Annotator "NA"]
[PlyCount "77"]
[EventDate "2018.??.??"]
[EventType "swiss"]
[EventCountry "FRA"]
[SourceTitle "playchess.com"]
[Source "ChessBase"]
[SourceQuality "1"]
[TimeControl "5400+30"]

1. e4 {[%emt 0:00:00]} e6 {[%emt 0:00:12]} 2. d4 {[%emt 0:00:00]} d5 {[%emt 0:00:05]} 3. Nd2 {[%emt 0:00:00]} Nf6 {[%emt 0:03:13]} 4. e5 {[%emt 0:00:00]} Nfd7 {[%emt 0:00:16]} 5. Bd3 {[%emt 0:00:00]} c5 {[%emt 0:01:24]} 6. c3 {[%emt 0:00:00]} Nc6 {[%emt 0:00:06]} 7. Ne2 {[%emt 0:00:12]} Qb6 {[%emt 0:00:21]} 8. O-O {[%emt 0:02:51]} cxd4 {[%emt 0:06:14]} 9. cxd4 {[%emt 0:00:01]} Be7 {[%emt 0:01:58] LiveBook: 5 Games} (9... Nxd4 $11 10. Nxd4 Qxd4) 10. Nf3 {[%emt 0:07:36]} f6 {[%emt 0:01:49]} 11. Nf4 {[%emt 0:14:11] C06: French Tarrasch: 3...Nf6 4 e5 Nfd7 5 Bd3 main lines} (11. exf6 Nxf6 12. Nf4 O-O 13. Re1 Bb4 14. Re2 Re8 15. Be3 Bd7 16. Ne5 Re7 17. Rc2 Bd6 18. Nxd7 Nxd7 19. Ne2 Nb4 {0-1 (39) Tiglon,B (2313)-Wheeler,C (2408) Las Vegas 2016}) 11... Nf8 {[%emt 0:03:41]} 12. Nh5 {[%emt 0:14:54]} Rg8 {[%emt 0:01:24]} 13. exf6 {[%emt 0:06:39]} gxf6 {[%emt 0:00:03]} 14. Bh6 {[%emt 0:02:59]} Bd7 $146 {[%emt 0:04:42]} ({Predecessor:} 14... Ng6 15. Re1 Bd7 16. Ng7+ Kf7 17. Nh5 Bd6 18. Ng5+ fxg5 {1-0 (26) Guerra Tulcan,L (2254)-Gandoy Martinez,P (1783) Ourense 2007}) 15. Ng7+ {[%emt 0:04:14]} Kd8 {[%emt 0:06:27]} 16. Nh5 {[%emt 0:07:14]} (16. Bc2 $14) 16... Ng6 {[%emt 0:07:04]} (16... Nxd4 $11 17. Bg7 Nxf3+ 18. Qxf3 f5) 17. Be3 {[%emt 0:05:45]} Qc7 {[%emt 0:03:00]} (17... Kc7 $14) 18. Rc1 {[%emt 0:05:33]} Qd6 {[%emt 0:00:55]} 19. Re1 {[%emt 0:03:28]} b6 {[%emt 0:03:41]} 20. Qb3 {[%emt 0:05:10]} Be8 {[%emt 0:07:31]} 21. Bb5 {[%emt 0:02:54]} Na5 {[%emt 0:01:24]} 22. Qa4 {[%emt 0:00:40]} Nh4 {[%emt 0:04:36]} 23. Nxh4 {[%emt 0:09:04]} Bxh5 {[%emt 0:00:16]} 24. Bd2 {[%emt 0:01:13]} Nc4 {[%emt 0:14:09]} 25. Bxc4 {[%emt 0:00:48]} f5 {[%emt 0:13:36]} 26. Be2 {[%emt 0:00:58]} Be8 {[%emt 0:03:21]} 27. Bb5 {[%emt 0:01:49]} Bxh4 {[%emt 0:00:24]} 28. Bxe8 {[%emt 0:01:18]} Rxe8 {[%emt 0:00:02]} 29. Rc6 {[%emt 0:01:05]} Qd7 {[%emt 0:01:17]} 30. Bf4 {[%emt 0:00:44]} Be7 {[%emt 0:03:43]} 31. Bc7+ {[%emt 0:00:33]} Qxc7 {[%emt 0:02:14]} 32. Rxc7 {[%emt 0:00:01]} Kxc7 {[%emt 0:00:01]} 33. Rxe6 {[%emt 0:01:58]} Rac8 {[%emt 0:03:46]} 34. Qxa7+ {[%emt 0:00:22]} Kd8 {[%emt 0:00:01]} 35. g3 {[%emt 0:00:25]} f4 {[%emt 0:01:54]} 36. Qb7 {[%emt 0:01:11]} fxg3 {[%emt 0:03:03]} 37. Qxd5+ {[%emt 0:00:25]} Kc7 {[%emt 0:00:11]} 38. Qc6+ {[%emt 0:00:58]} Kd8 {[%emt 0:00:02]} 39. Rd6+ {[%emt 0:00:24]} 1-0